fUST/lending_fUST_20240715
["ID","MTS","AMOUNT","RATE_DAILY","PERIOD"]
[332204435,1721033453375,-175.511413,0.00025479,7]
[332204436,1721033453383,-500.0,0.00025479,2]
[332204437,1721033453393,-500.0,0.00025479,2]
[332204438,1721033453401,-500.0,0.00025479,2]
[332204439,1721033453411,-175.511413,0.00025479,7]
[332204440,1721033453420,-500.0,0.00025479,2]
[332204441,1721033453429,-500.0,0.00025479,2]
[332204442,1721033453438,-500.0,0.00025479,2]
[332204443,1721033453448,-500.0,0.00025479,2]
[332204444,1721033453457,-506.88703182,0.00025479,2]
[332204445,1721033453467,-500.0,0.00025479,2]
[332204446,1721033453476,-703.0,0.00025479,2]
[332204447,1721033453485,-500.0,0.00025479,2]
[332204448,1721033453495,-201.7,0.0002548,2]
[332204449,1721033453504,-500.0,0.0002548,2]
[332204450,1721033453513,-131368.54921514,0.000255,2]
[332204451,1721033453522,-151.0,0.000255,7]
[332204452,1721033453532,-165.191516,0.000255,2]
[332204453,1721033453541,-165.191516,0.000255,2]
[332204454,1721033453550,-413.556163,0.000255,7]
[332204455,1721033453559,-413.556163,0.000255,7]
[332204456,1721033453568,-238.857997,0.000255,7]
[332204457,1721033453577,-165.977123,0.000255,7]
[332204458,1721033453586,-165.977123,0.000255,7]
[332204459,1721033453596,-151.0,0.000255,7]
[332204460,1721033453604,-242.981211,0.000255,7]
[332204461,1721033453613,-242.981211,0.000255,7]
[332204462,1721033453622,-165.088209,0.000255,7]
[332204463,1721033453631,-165.088209,0.000255,7]
[332204464,1721033453640,-152.82118,0.000255,7]
[332204465,1721033453652,-151.0,0.000255,7]
[332204466,1721033453661,-152.82118,0.000255,7]
[332204467,1721033453670,-151.0,0.000255,7]
[332204468,1721033453678,-299.603066,0.000255,7]
[332204469,1721033453687,-299.603066,0.000255,7]
[332204470,1721033453698,-151.0,0.000255,7]
[332204471,1721033453707,-811.866382,0.000255,2]
[332204472,1721033453715,-151.0,0.000255,7]
[332204473,1721033453725,-811.866382,0.000255,2]
[332204474,1721033453735,-151.0,0.000255,7]
[332204475,1721033453744,-151.0,0.000255,7]
[332204476,1721033453754,-326.779574,0.000255,7]
[332204477,1721033453763,-326.779574,0.000255,7]
[332204478,1721033453773,-151.0,0.000255,7]
[332204479,1721033453782,-442.516801,0.000255,7]
[332204480,1721033453791,-442.516801,0.000255,7]
[332204481,1721033453801,-1061.766511,0.000255,7]
[332204482,1721033453810,-1061.766511,0.000255,7]
[332204483,1721033453819,-457.989968,0.000255,7]
[332204484,1721033453828,-457.989968,0.000255,7]
[332204485,1721033453838,-151.0,0.000255,7]
[332204486,1721033453849,-151.0,0.000255,7]
[332204487,1721033453858,-273.051489,0.000255,7]
[332204488,1721033453867,-273.051489,0.000255,7]
[332204489,1721033453876,-175.511413,0.000255,7]
[332204490,1721033453885,-175.511413,0.000255,7]
[332204491,1721033453895,-30000.0,0.00025501,2]
[332204492,1721033453905,-312.15131797,0.00025581,2]
[332204493,1721033453915,-153.0,0.00025644,2]
[332204494,1721033453924,-153.0,0.00025644,2]
[332204495,1721033453933,-153.0,0.00025644,2]
[332204496,1721033453942,-153.0,0.00025644,2]
[332204497,1721033453951,-153.0,0.00025644,2]
[332204498,1721033453960,-153.0,0.00025644,2]
[332204499,1721033453969,-153.0,0.00025644,2]
[332204500,1721033453978,-153.0,0.00025644,2]
[332204501,1721033453987,-153.0,0.00025644,2]
[332204502,1721033453997,-153.0,0.00025644,2]
[332204503,1721033454006,-153.0,0.00025644,2]
[332204504,1721033454015,-153.0,0.00025644,2]
[332204505,1721033454025,-153.0,0.00025644,2]
[332204506,1721033454034,-153.0,0.00025644,2]
[332204507,1721033454043,-153.0,0.00025644,2]
[332204508,1721033454053,-153.0,0.00025644,2]
[332204509,1721033454062,-153.0,0.00025644,2]
[332204510,1721033454072,-153.0,0.00025644,2]
[332204511,1721033454081,-153.0,0.00025644,2]
[332204512,1721033454090,-153.0,0.00025644,2]
[332204513,1721033454100,-153.0,0.00025644,2]
[332204514,1721033454110,-153.0,0.00025644,2]
[332204515,1721033454119,-153.9296136,0.00025644,2]
[332204516,1721033454129,-500.0,0.00025753,2]
[332204517,1721033454138,-195.36816014,0.00025753,2]
[332204518,1721033454147,-353.12022013,0.00025753,2]
[332204519,1721033454156,-500.0,0.00025753,2]
[332204520,1721033454165,-500.0,0.00025753,2]
[332204521,1721033454175,-500.0,0.00025753,2]
[332204522,1721033454185,-708.24,0.00025753,4]
[332204523,1721033454194,-562.48588182,0.00025753,2]
[332204524,1721033454203,-500.0,0.00025753,2]
[332204525,1721033454212,-500.0,0.00025753,2]
[332204526,1721033454222,-500.0,0.00025753,2]
[332204527,1721033454232,-500.0,0.00025753,2]
[332204528,1721033454242,-500.0,0.00025753,2]
[332204529,1721033454251,-500.0,0.00025753,2]
[332204530,1721033454261,-622.2964126,0.00025753,2]
[332204531,1721033454270,-642.39225501,0.00025753,2]
[332204532,1721033454280,-500.0,0.00025753,2]
[332204533,1721033454289,-269.84315377,0.00025753,2]
[332204534,1721033454299,-500.0,0.00025753,2]
[332204535,1721033454308,-500.0,0.00025753,2]
[332204536,1721033454317,-501.98,0.00025753,2]
[332204537,1721033454326,-489.12958133,0.00025753,2]
[332204538,1721033454335,-500.0,0.00025753,2]
[332204539,1721033454346,-500.0,0.00025753,2]
[332204540,1721033454356,-500.0,0.00025753,2]
[332204541,1721033454366,-500.0,0.00025753,2]
[332204542,1721033454375,-500.0,0.00025753,2]
[332204543,1721033454384,-228.21393813,0.00025753,2]
[332204544,1721033454393,-702.26,0.00025753,2]
[332204545,1721033454402,-1522.275421,0.00025753,2]
[332204546,1721033454412,-650.16,0.00025753,2]
[332204547,1721033454422,-715.41,0.00025753,2]
[332204548,1721033454432,-621.7,0.00025753,2]
[332204549,1721033454441,-500.0,0.00025753,2]
[332204550,1721033454450,-577.02987716,0.00025753,2]
[332204551,1721033454460,-500.0,0.00025753,2]
[332204552,1721033454469,-586.93785292,0.00025753,2]
[332204553,1721033454479,-1392.42,0.00025753,2]
[332204554,1721033454489,-500.0,0.00025753,2]
[332204555,1721033454499,-500.0,0.00025753,2]
[332204556,1721033454509,-791.68,0.00025753,2]
[332204557,1721033454518,-500.0,0.00025753,2]
[332204558,1721033454527,-500.0,0.00025753,2]
[332204559,1721033454537,-335.0693345,0.00025753,2]
[332204560,1721033454546,-500.0,0.00025753,2]
[332204561,1721033454555,-500.0,0.00025753,2]
[332204562,1721033454564,-847.82,0.00025753,2]
[332204563,1721033454573,-233.23400015,0.00025753,2]
[332204564,1721033454582,-518.70969948,0.00025753,2]
[332204565,1721033454592,-500.0,0.00025753,2]
[332204566,1721033454604,-162.21425371,0.00025753,2]
[332204567,1721033454613,-500.0,0.00025753,2]
[332204568,1721033454622,-500.0,0.00025753,2]
[332204569,1721033454631,-500.0,0.00025753,2]
[332204570,1721033454641,-1832.53,0.00025753,2]
[332204571,1721033454652,-500.0,0.00025753,2]
[332204572,1721033454661,-500.0,0.00025753,2]
[332204573,1721033454670,-200.0,0.00025753,2]
[332204574,1721033454679,-2808.39,0.00025753,2]
[332204575,1721033454690,-845.85,0.00025753,2]
[332204576,1721033454699,-500.0,0.00025753,2]
[332204577,1721033454708,-500.0,0.00025753,2]
[332204578,1721033454717,-1426.61,0.00025753,2]
[332204579,1721033454727,-2773.2,0.00025753,2]
[332204580,1721033454736,-500.0,0.00025753,2]
[332204581,1721033454746,-500.0,0.00025753,2]
[332204582,1721033454755,-334.78237714,0.00025753,2]
[332204583,1721033454765,-500.0,0.00025753,2]
[332204584,1721033454774,-500.0,0.00025753,2]
[332204585,1721033454784,-500.0,0.00025753,2]
[332204586,1721033454793,-500.0,0.00025753,2]
[332204587,1721033454802,-500.0,0.00025753,2]
[332204588,1721033454812,-500.0,0.00025753,2]
[332204589,1721033454821,-500.0,0.00025753,2]
[332204590,1721033454830,-500.0,0.00025753,2]
[332204591,1721033454839,-500.0,0.00025753,2]
[332204592,1721033454849,-500.0,0.00025753,2]
[332204593,1721033454858,-500.0,0.00025753,2]
[332204594,1721033454868,-500.0,0.00025753,2]
[332204595,1721033454877,-500.0,0.00025753,2]
[332204596,1721033454886,-500.0,0.00025753,2]
[332204597,1721033454895,-500.0,0.00025753,2]
[332204598,1721033454904,-500.0,0.00025753,2]
[332204599,1721033454914,-841.56,0.00025753,2]
[332204600,1721033454924,-500.0,0.00025753,2]
[332204601,1721033454933,-500.0,0.00025753,2]
[332204602,1721033454942,-500.0,0.00025753,2]
[332204603,1721033454952,-500.0,0.00025753,2]
[332204604,1721033454962,-500.0,0.00025753,2]
[332204605,1721033454971,-500.0,0.00025753,2]
[332204606,1721033454981,-500.0,0.00025753,2]
[332204607,1721033455077,-3850.77,0.00025753,2]
[332204608,1721033455086,-500.0,0.00025753,2]
[332204609,1721033455097,-500.0,0.00025753,2]
[332204610,1721033455107,-500.0,0.00025753,2]
[332204611,1721033455116,-500.0,0.00025753,2]
[332204612,1721033455126,-500.0,0.00025753,2]
[332204613,1721033455135,-500.0,0.00025753,2]
[332204614,1721033455145,-500.0,0.00025753,2]
[332204615,1721033455154,-588.21377265,0.00025753,2]
[332204616,1721033455164,-500.0,0.00025753,2]
[332204617,1721033455175,-500.0,0.00025753,2]
[332204618,1721033455185,-500.0,0.00025753,2]
[332204619,1721033455194,-500.0,0.00025753,2]
[332204620,1721033455205,-500.0,0.00025753,2]
[332204621,1721033455215,-664.91,0.00025753,2]
[332204622,1721033455225,-1626.76,0.00025753,2]
[332204623,1721033455238,-500.0,0.00025753,2]
[332204624,1721033455247,-500.0,0.00025753,2]
[332204625,1721033455258,-291.9149805,0.00025753,2]
[332204626,1721033455269,-765.72,0.00025753,2]
[332204627,1721033455279,-500.0,0.00025753,2]
[332204628,1721033455289,-505.78497756,0.00025753,2]
[332204629,1721033455298,-609.72,0.00025753,2]
[332204630,1721033455308,-500.0,0.00025753,2]
[332204631,1721033455318,-500.0,0.00025753,2]
[332204632,1721033455328,-21833.04,0.00025753,2]
[332204633,1721033455338,-500.0,0.00025753,2]
[332204634,1721033455349,-500.0,0.00025753,2]
[332204635,1721033455358,-500.0,0.00025753,2]
[332204636,1721033455367,-500.0,0.00025753,2]
[332204637,1721033455378,-2439.81,0.00025753,2]
[332204638,1721033455387,-510.98,0.00025753,2]
[332204639,1721033455397,-500.0,0.00025753,2]
[332204640,1721033455406,-500.0,0.00025753,2]
[332204641,1721033455416,-500.0,0.00025753,2]
[332204642,1721033455425,-500.0,0.00025753,2]
[332204643,1721033455435,-500.0,0.00025753,2]
[332204644,1721033455445,-500.0,0.00025753,2]
[332204645,1721033455455,-503.83772313,0.00025753,2]
[332204646,1721033455464,-500.0,0.00025753,2]
[332204647,1721033455474,-4417.13,0.00025753,2]
[332204648,1721033455484,-500.0,0.00025753,2]
[332204649,1721033455494,-500.0,0.00025753,2]
[332204650,1721033455504,-1034.76,0.00025753,2]
[332204651,1721033455513,-500.0,0.00025753,2]
[332204652,1721033455523,-500.0,0.00025753,2]
[332204653,1721033455533,-151.0,0.00025753,7]
[332204654,1721033455542,-500.0,0.00025753,2]
[332204655,1721033455552,-504.22809658,0.00025753,2]
[332204656,1721033455562,-780.19,0.00025753,2]
[332204657,1721033455572,-500.0,0.00025753,2]
[332204658,1721033455582,-151.0,0.00025753,7]
[332204659,1721033455592,-4687.31,0.00025753,2]
[332204660,1721033455603,-1264.1,0.00025753,2]
[332204661,1721033455612,-587.18,0.00025753,2]
[332204662,1721033455622,-500.0,0.00025753,2]
[332204663,1721033455631,-509.1655062,0.00025753,2]
[332204664,1721033455641,-1390.09,0.00025753,2]
[332204665,1721033455653,-500.0,0.00025753,2]
[332204666,1721033455662,-500.0,0.00025753,2]
[332204667,1721033455671,-561.78,0.00025753,2]
[332204668,1721033455680,-500.0,0.00025753,2]
[332204669,1721033455693,-528.11052501,0.00025753,2]
[332204670,1721033455702,-414.13985495,0.00025753,2]
[332204671,1721033455711,-500.0,0.00025753,2]
[332204672,1721033455721,-500.0,0.00025753,2]
[332204673,1721033455732,-273.051489,0.00025753,7]
[332204674,1721033455742,-500.0,0.00025753,2]
[332204675,1721033455752,-500.0,0.00025753,2]
[332204676,1721033455761,-273.051489,0.00025753,7]
[332204677,1721033455770,-500.0,0.00025753,2]
[332204678,1721033455780,-500.0,0.00025753,2]
[332204679,1721033455789,-2212.25,0.00025753,2]
[332204680,1721033455798,-175.511413,0.00025753,7]
[332204681,1721033455807,-217.830584,0.00025753,2]
[332204682,1721033455817,-500.0,0.00025753,2]
[332204683,1721033455826,-500.0,0.00025753,2]
[332204684,1721033455836,-175.511413,0.00025753,7]
[332204685,1721033455847,-500.0,0.00025753,2]
[332204686,1721033455858,-500.0,0.00025753,2]
[332204687,1721033455868,-500.0,0.00025753,2]
[332204688,1721033455877,-632.72487901,0.00025753,2]
[332204689,1721033455887,-500.0,0.00025753,2]
[332204690,1721033455896,-703.0,0.00025753,2]
[332204691,1721033455905,-156.416538,0.00025771,2]
[332204692,1721033455915,-197.495913,0.00025771,2]
[332204693,1721033455925,-186.055508,0.00025771,2]
[332204694,1721033455935,-600.0,0.00025776,2]
[332204695,1721033455945,-1000.0,0.00025777,2]
[332204696,1721033455954,-1000.0,0.00025779,2]
[332204697,1721033455964,-318.29365018,0.00025802,2]
[332204698,1721033455974,-215.5,0.00025903,2]
[332204699,1721033455983,-151.0,0.00025903,2]
[332204700,1721033455994,-326.779574,0.00025927,7]
[332204701,1721033456003,-326.779574,0.00025927,7]
[332204702,1721033456013,-220.431666,0.00025927,7]
[332204703,1721033456023,-442.516801,0.00025927,7]
[332204704,1721033456032,-442.516801,0.00025927,7]
[332204705,1721033456042,-1061.766511,0.00025927,7]
[332204706,1721033456052,-1061.766511,0.00025927,7]
[332204707,1721033456061,-457.989968,0.00025927,7]
[332204708,1721033456071,-457.989968,0.00025927,7]
[332204709,1721033456080,-153.0,0.00025973,2]
[332204710,1721033456090,-153.0,0.00025973,2]
[332204711,1721033456101,-153.0,0.00025973,2]
[332204712,1721033456110,-153.0,0.00025973,2]
[332204713,1721033456120,-153.0,0.00025973,2]
[332204714,1721033456130,-1245.9893827,0.0002599,2]
[332204715,1721033456143,-160.0,0.00025992,5]
[332204716,1721033456152,-995.46,0.00025997,3]
[332204717,1721033456162,-511.0,0.00026,120]
[332204718,1721033456171,-1000.0,0.00026,26]
[332204719,1721033456181,-170754.42394491,0.00026,2]
[332204720,1721033456190,-383625.4945,0.00026,2]
[332204721,1721033456200,-5000.0,0.00026,2]
[332204722,1721033456210,-151.0,0.00026,7]
[332204723,1721033456219,-151.0,0.00026,7]
[332204724,1721033456229,-165.191516,0.00026,2]
[332204725,1721033456239,-165.191516,0.00026,2]
[332204726,1721033456248,-165.191516,0.00026,2]
[332204727,1721033456258,-165.191516,0.00026,2]
[332204728,1721033456267,-413.556163,0.00026,7]
[332204729,1721033456277,-413.556163,0.00026,7]
[332204730,1721033456286,-413.556163,0.00026,7]
[332204731,1721033456296,-413.556163,0.00026,7]
[332204732,1721033456305,-165.977123,0.00026,7]
[332204733,1721033456315,-165.977123,0.00026,7]
[332204734,1721033456324,-165.977123,0.00026,7]
[332204735,1721033456333,-165.977123,0.00026,7]
[332204736,1721033456343,-242.981211,0.00026,7]
[332204737,1721033456356,-242.981211,0.00026,7]
[332204738,1721033456365,-242.981211,0.00026,7]
[332204739,1721033456375,-242.981211,0.00026,7]
[332204740,1721033456386,-165.088209,0.00026,7]
[332204741,1721033456396,-165.088209,0.00026,7]
[332204742,1721033456405,-165.088209,0.00026,7]
[332204743,1721033456414,-165.088209,0.00026,7]
[332204744,1721033456424,-152.82118,0.00026,7]
[332204745,1721033456433,-152.82118,0.00026,7]
[332204746,1721033456443,-151.0,0.00026,7]
[332204747,1721033456452,-151.0,0.00026,7]
[332204748,1721033456461,-152.82118,0.00026,7]
[332204749,1721033456471,-152.82118,0.00026,7]
[332204750,1721033456481,-151.0,0.00026,7]
[332204751,1721033456491,-151.0,0.00026,7]
[332204752,1721033456501,-299.603066,0.00026,7]
[332204753,1721033456510,-299.603066,0.00026,7]
[332204754,1721033456520,-299.603066,0.00026,7]
[332204755,1721033456530,-299.603066,0.00026,7]
[332204756,1721033456539,-151.0,0.00026,7]
[332204757,1721033456550,-151.0,0.00026,7]
[332204758,1721033456560,-811.866382,0.00026,2]
[332204759,1721033456570,-811.866382,0.00026,2]
[332204760,1721033456580,-151.0,0.00026,7]
[332204761,1721033456591,-151.0,0.00026,7]
[332204762,1721033456602,-811.866382,0.00026,2]
[332204763,1721033456612,-811.866382,0.00026,2]
[332204764,1721033456621,-151.0,0.00026,7]
[332204765,1721033456630,-151.0,0.00026,7]
[332204766,1721033456641,-167.915234,0.00026,7]
[332204767,1721033456655,-154.72922386,0.00026,2]
[332204768,1721033456665,-326.779574,0.00026,7]
[332204769,1721033456675,-326.779574,0.00026,7]
[332204770,1721033456685,-326.779574,0.00026,7]
[332204771,1721033456695,-326.779574,0.00026,7]
[332204772,1721033456704,-442.516801,0.00026,7]
[332204773,1721033456714,-442.516801,0.00026,7]
[332204774,1721033456725,-442.516801,0.00026,7]
[332204775,1721033456734,-442.516801,0.00026,7]
[332204776,1721033456744,-1061.766511,0.00026,7]
[332204777,1721033456754,-1061.766511,0.00026,7]
[332204778,1721033456764,-1061.766511,0.00026,7]
[332204779,1721033456773,-1061.766511,0.00026,7]
[332204780,1721033456783,-457.989968,0.00026,7]
[332204781,1721033456792,-457.989968,0.00026,7]
[332204782,1721033456803,-457.989968,0.00026,7]
[332204783,1721033456812,-457.989968,0.00026,7]
[332204784,1721033456823,-151.0,0.00026,7]
[332204785,1721033456834,-151.0,0.00026,7]
[332204786,1721033456843,-260.453734,0.00026,7]
[332204787,1721033456856,-273.051489,0.00026,7]
[332204788,1721033456866,-273.051489,0.00026,7]
[332204789,1721033456877,-273.051489,0.00026,7]
[332204790,1721033456887,-273.051489,0.00026,7]
[332204791,1721033456896,-175.511413,0.00026,7]
[332204792,1721033456906,-175.511413,0.00026,7]
[332204793,1721033456916,-175.511413,0.00026,7]
[332204794,1721033456926,-175.511413,0.00026,7]
[332204795,1721033456936,-154.59445059,0.00026024,2]
[332204796,1721033456946,-500.0,0.00026027,2]
[332204797,1721033456955,-500.0,0.00026027,2]
[332204798,1721033456965,-579.12536042,0.00026027,2]
[332204799,1721033456975,-500.0,0.00026027,2]
[332204800,1721033456985,-708.24,0.00026027,4]
[332204801,1721033456994,-500.0,0.00026027,2]
[332204802,1721033457005,-500.0,0.00026027,2]
[332204803,1721033457014,-500.0,0.00026027,2]
[332204804,1721033457023,-500.0,0.00026027,2]
[332204805,1721033457120,-350.50030247,0.00026027,2]
[332204806,1721033457130,-500.0,0.00026027,2]
[332204807,1721033457141,-500.0,0.00026027,2]
[332204808,1721033457151,-500.0,0.00026027,2]
[332204809,1721033457161,-399.99001487,0.00026027,2]
[332204810,1721033457172,-501.98,0.00026027,2]
[332204811,1721033457182,-500.0,0.00026027,2]
[332204812,1721033457191,-500.0,0.00026027,2]
[332204813,1721033457201,-500.0,0.00026027,2]
[332204814,1721033457211,-187.01726695,0.00026027,2]
[332204815,1721033457221,-702.26,0.00026027,2]
[332204816,1721033457231,-650.16,0.00026027,2]
[332204817,1721033457241,-715.41,0.00026027,2]
[332204818,1721033457250,-621.7,0.00026027,2]
[332204819,1721033457259,-500.0,0.00026027,2]
[332204820,1721033457269,-509.67089546,0.00026027,2]
[332204821,1721033457280,-1392.42,0.00026027,2]
[332204822,1721033457289,-500.0,0.00026027,2]
[332204823,1721033457299,-500.0,0.00026027,2]
[332204824,1721033457308,-791.68,0.00026027,2]
[332204825,1721033457318,-500.0,0.00026027,2]
[332204826,1721033457328,-500.0,0.00026027,2]
[332204827,1721033457337,-500.0,0.00026027,2]
[332204828,1721033457349,-500.0,0.00026027,2]
[332204829,1721033457358,-847.82,0.00026027,2]
[332204830,1721033457368,-500.0,0.00026027,2]
[332204831,1721033457378,-517.08841575,0.00026027,2]
[332204832,1721033457387,-500.0,0.00026027,2]
[332204833,1721033457398,-500.0,0.00026027,2]
[332204834,1721033457408,-1832.53,0.00026027,2]
[332204835,1721033457418,-500.0,0.00026027,2]
[332204836,1721033457427,-319.64320157,0.00026027,2]
[332204837,1721033457436,-200.0,0.00026027,2]
[332204838,1721033457446,-2808.39,0.00026027,2]
[332204839,1721033457455,-845.85,0.00026027,2]
[332204840,1721033457464,-500.0,0.00026027,2]
[332204841,1721033457474,-500.0,0.00026027,2]
[332204842,1721033457483,-1426.61,0.00026027,2]
[332204843,1721033457493,-2773.2,0.00026027,2]
[332204844,1721033457502,-500.0,0.00026027,2]
[332204845,1721033457512,-500.0,0.00026027,2]
[332204846,1721033457521,-500.0,0.00026027,2]
[332204847,1721033457530,-500.0,0.00026027,2]
[332204848,1721033457541,-500.0,0.00026027,2]
[332204849,1721033457550,-500.0,0.00026027,2]
[332204850,1721033457559,-500.0,0.00026027,2]
[332204851,1721033457569,-500.0,0.00026027,2]
[332204852,1721033457579,-500.0,0.00026027,2]
[332204853,1721033457588,-500.0,0.00026027,2]
[332204854,1721033457600,-500.0,0.00026027,2]
[332204855,1721033457610,-500.0,0.00026027,2]
[332204856,1721033457620,-500.0,0.00026027,2]
[332204857,1721033457630,-500.0,0.00026027,2]
[332204858,1721033457639,-500.0,0.00026027,2]
[332204859,1721033457648,-500.0,0.00026027,2]
[332204860,1721033457662,-643.05358336,0.00026027,2]
[332204861,1721033457671,-841.56,0.00026027,2]
[332204862,1721033457681,-511.69338959,0.00026027,2]
[332204863,1721033457691,-500.0,0.00026027,2]
[332204864,1721033457700,-500.0,0.00026027,2]
[332204865,1721033457710,-519.18528763,0.00026027,2]
[332204866,1721033457720,-506.17293729,0.00026027,2]
[332204867,1721033457731,-500.0,0.00026027,2]
[332204868,1721033457741,-3850.77,0.00026027,2]
[332204869,1721033457751,-500.0,0.00026027,2]
[332204870,1721033457761,-500.0,0.00026027,2]
[332204871,1721033457770,-356.79895753,0.00026027,2]
[332204872,1721033457780,-500.0,0.00026027,2]
[332204873,1721033457789,-500.0,0.00026027,2]
[332204874,1721033457798,-500.0,0.00026027,2]
[332204875,1721033457809,-500.0,0.00026027,2]
[332204876,1721033457819,-500.0,0.00026027,2]
[332204877,1721033457828,-263.69642266,0.00026027,2]
[332204878,1721033457838,-500.0,0.00026027,2]
[332204879,1721033457850,-245.34,0.00026027,2]
[332204880,1721033457860,-500.0,0.00026027,2]
[332204881,1721033457870,-664.91,0.00026027,2]
[332204882,1721033457880,-1626.76,0.00026027,2]
[332204883,1721033457890,-500.0,0.00026027,2]
[332204884,1721033457900,-500.0,0.00026027,2]
[332204885,1721033457910,-765.72,0.00026027,2]
[332204886,1721033457920,-546.94117693,0.00026027,2]
[332204887,1721033457930,-609.72,0.00026027,2]
[332204888,1721033457939,-500.0,0.00026027,2]
[332204889,1721033457950,-500.0,0.00026027,2]
[332204890,1721033457960,-21833.04,0.00026027,2]
[332204891,1721033457970,-500.0,0.00026027,2]
[332204892,1721033457979,-500.0,0.00026027,2]
[332204893,1721033457989,-500.0,0.00026027,2]
[332204894,1721033457999,-540.76950876,0.00026027,2]
[332204895,1721033458008,-2439.81,0.00026027,2]
[332204896,1721033458018,-510.98,0.00026027,2]
[332204897,1721033458027,-500.0,0.00026027,2]
[332204898,1721033458037,-500.0,0.00026027,2]
[332204899,1721033458046,-500.0,0.00026027,2]
[332204900,1721033458056,-500.0,0.00026027,2]
[332204901,1721033458067,-500.0,0.00026027,2]
[332204902,1721033458077,-500.0,0.00026027,2]
[332204903,1721033458086,-4417.13,0.00026027,2]
[332204904,1721033458095,-173.0,0.00026027,2]
[332204905,1721033458108,-500.0,0.00026027,2]
[332204906,1721033458117,-1034.76,0.00026027,2]
[332204907,1721033458128,-500.0,0.00026027,2]
[332204908,1721033458138,-500.0,0.00026027,2]
[332204909,1721033458148,-500.0,0.00026027,2]
[332204910,1721033458157,-780.19,0.00026027,2]
[332204911,1721033458168,-500.0,0.00026027,2]
[332204912,1721033458178,-4687.31,0.00026027,2]
[332204913,1721033458187,-1264.1,0.00026027,2]
[332204914,1721033458197,-500.0,0.00026027,2]
[332204915,1721033458207,-1390.09,0.00026027,2]
[332204916,1721033458217,-500.0,0.00026027,2]
[332204917,1721033458227,-500.0,0.00026027,2]
[332204918,1721033458238,-561.78,0.00026027,2]
[332204919,1721033458248,-505.58573905,0.00026027,2]
[332204920,1721033458258,-500.0,0.00026027,2]
[332204921,1721033458268,-500.0,0.00026027,2]
[332204922,1721033458279,-500.0,0.00026027,2]
[332204923,1721033458289,-500.0,0.00026027,2]
[332204924,1721033458298,-500.0,0.00026027,2]
[332204925,1721033458308,-500.0,0.00026027,2]
[332204926,1721033458318,-2212.25,0.00026027,2]
[332204927,1721033458328,-500.0,0.00026027,2]
[332204928,1721033458338,-500.0,0.00026027,2]
[332204929,1721033458348,-500.0,0.00026027,2]
[332204930,1721033458363,-500.0,0.00026027,2]
[332204931,1721033458372,-500.0,0.00026027,2]
[332204932,1721033458382,-500.0,0.00026027,2]
[332204933,1721033458391,-703.0,0.00026027,2]
[332204934,1721033458401,-153.0,0.00026027,2]